Cogmind - Beta 16.1 @@@ ROGUE MODE // 2026.03.28 @ 16:30:53 Player: Skrub Result: Destroyed by as-57633 with Assembled Rifle Performance ------------- Evolutions (0) 0 Regions Visited (2) 400 Robots Destroyed (4) 20 Value Destroyed (172) 172 Prototype IDs (1) 20 Alien Tech Used (0) 0 Bonus (0) 0 TOTAL SCORE: 612 Bonus ------- None Cogmind --------- Core Integrity 0/250 Matter 300/300 Energy 100/100 System Corruption 0% Temperature Cool (0) Movement Core (200) Ox3 Location -10/Mines Parts ------- > --- POWER (1) -------- (None) > --- PROPULSION (2) --- (None) > --- UTILITY (2) ------ Splice Drone Bay (6/6) > --- WEAPON (2) ------- Makeshift Spear > --- INVENTORY (5) ---- Ion Engine Peak State ------------ > --- POWER ------------ (None) > --- PROPULSION ------- (None) > --- UTILITY ---------- Splice Drone Bay > --- WEAPON ----------- Makeshift Spear > --- INVENTORY -------- Ion Engine [Rating: 11] Favorites ----------- Power Light Nuclear Core Engine Ion Engine Power Core Light Nuclear Core Propulsion Compact Wheel Wheel Compact Wheel Utility Splice Drone Bay Device Splice Drone Bay Weapon Light Assault Rifle Energy Gun EM Pulse Gun Ballistic Gun Light Assault Rifle Special Weapon Mining Laser Piercing Weapon Makeshift Spear Build | -11 -10 -10 ------- Run | Yrd Mat Min Slots Evolved . | . . . Power . | . . . Propulsion . | . . . Utility . | . . . Weapon . | . . . Parts Attached 10 | 5 . 5 Power 2 | 1 . 1 Engine 1 | 1 . . Core 1 | . . 1 Reactor . | . . . Propulsion 2 | 2 . . Treads . | . . . Leg . | . . . Wheel 2 | 2 . . Hover . | . . . Flight . | . . . Utility 1 | . . 1 Device 1 | . . 1 Storage . | . . . Processor . | . . . Hackware . | . . . Protection . | . . . Artifact . | . . . Weapon 5 | 2 . 3 Energy Gun 1 | 1 . . Energy Cannon . | . . . Ballistic Gun 1 | 1 . . Ballistic Cannon . | . . . Launcher . | . . . Special Weapon 2 | . . 2 Impact Weapon . | . . . Slashing Weapon . | . . . Piercing Weapon 1 | . . 1 Special Melee Weapon . | . . . Unidentified Prototypes 1 | . . 1 Parts Lost 7 | . . 7 Power 1 | . . 1 Propulsion 2 | . . 2 Utility . | . . . Weapon 4 | . . 4 Highest Loss Streak 7 | . . 7 To Critical Strikes . | . . . Average Backups 2 | 1 3 2 Power 1 | . 1 1 Propulsion . | . 2 . Utility . | . . . Weapon 1 | . . 1 Tool/Special . | . . . Unused Backups . | . . . Power . | . . . Propulsion . | . . . Utility . | . . . Weapon . | . . . Tool/Special . | . . . Average Slot Usage (%) 42 | . 28 43 Wheel 15 | . . 16 Device 3 | . . 3 Energy Gun 8 | . 14 8 Ballistic Gun 8 | . 14 8 Piercing Weapon 4 | . . 4 Peak Build Rating 11 | 5 2 11 Average Rating 5 | 2 2 5 On Entrance 1 | . 2 2 Avg Prop Armor Cover (%) 13 | . . 13 Naked Turns 7 | . . 7 Heaviest Build 10 | 8 3 10 Greatest Support 26 | 26 3 3 Greatest Overweight (x) 3 | . . 3 Average Overweight (x) . | . . . Largest Inventory Capacity 5 | 5 5 5 Average Capacity 5 | 5 5 5 Most Carried 5 | 3 5 5 Average Carried 2 | 1 3 2 Final Capacity 5 | 5 5 5 Final Carried 5 | 3 5 1 Class Distribution -------------------- 100% | Mutant Dominant Class ---------------- Mutant | -10/Materials Mutant | -10/Mines Resources | -11 -10 -10 ----------- Run | Yrd Mat Min Matter Collected 324 | 117 . 207 Remotely . | . . . Salvage Created 150 | . . 150 Parts 8 | . . 8 Haulers Intercepted . | . . . Recyclers Shooed . | . . . Parts Field Recycled . | . . . Retrieved Matter . | . . . Parts Self-Destructed . | . . . Prevented . | . . . Parts Restored . | . . . Kills | -11 -10 -10 ------- Run | Yrd Mat Min Combat Hostiles Destroyed 4 | . . 4 Melee 1 | . . 1 Guns 3 | . . 3 Classes Destroyed 1 | . . 1 Grunt 4 | . . 4 Best Kill Streak 2 | . . 2 Combat Bots Only 2 | . . 2 Max Kills in Single Turn 1 | . . 1 Gunslinging . | . . . Exploded . | . . . Melee 1 | . . 1 Uniques/NPCs Destroyed . | . . . Combat | -11 -10 -10 -------- Run | Yrd Mat Min Hostile Shots Fired 57 | . . 57 Missed 11 | . . 11 Hits 46 | . . 46 Projectile 46 | . . 46 Critical Strikes 2 | . . 2 Damage Taken 605 | . . 605 Core 258 | . . 258 Absorbed by Shields . | . . . Core Remaining (%) 100 | 100 . . Volleys Fired 20 | . 2 18 Largest 2 | . 2 2 Hottest 200 | . 60 200 Shots Fired 30 | . 4 26 Gun 26 | . 4 22 Cannon . | . . . Launcher . | . . . Special 4 | . . 4 Kinetic 17 | . 2 15 Thermal 4 | . . 4 Explosive . | . . . Electromagnetic 9 | . 2 7 Robot Hit Streak 5 | . 1 5 Robot Miss Streak 2 | . 2 2 Penetration Max . | . . . Secondary Targets . | . . . Shots Hit Robots 22 | . 1 21 Core Hits 9 | . . 9 Critical Kills . | . . . Critical Parts Destroyed . | . . . Critical Strikes . | . . . Melee Attacks 2 | . . 2 Impact . | . . . Slashing . | . . . Piercing 2 | . . 2 Sneak Attacks . | . . . Combat Hostiles . | . . . Follow-up Attacks . | . . . Damage Inflicted 298 | . 16 282 Guns 174 | . 16 158 Cannons . | . . . Explosions . | . . . Melee 76 | . . 76 Ramming . | . . . Kinetic 92 | . . 92 Thermal 48 | . . 48 Explosive . | . . . Electromagnetic 82 | . 16 66 Impact . | . . . Slashing . | . . . Piercing 76 | . . 76 Highest Corruption . | . . . Average Corruption . | . . . Corruption Purged . | . . . Corruption Blocked . | . . . Overload Shots . | . . . Overflow Damage . | . . . Projectiles . | . . . Explosions . | . . . Melee . | . . . Knockbacks . | . . . Impact . | . . . Kinetic . | . . . Secondary . | . . . Self-Inflicted Damage . | . . . Shots . | . . . Rammed . | . . . Targets Rammed . | . . . Kicked . | . . . Crushed . | . . . Highest Temperature 182 | . 10 182 Average Temperature 72 | . 7 77 Received Heat Transfer 369 | . . 369 Siege Activations . | . . . Martial Activations . | . . . Shielding Activations . | . . . Robots Disrupted . | . . . Combat Hostiles . | . . . Robots Corrupted . | . . . Combat Hostiles . | . . . Parts Fried . | . . . Impact Corruptions . | . . . Robots Melted . | . . . Combat Hostiles . | . . . Parts Melted . | . . . Heat Transferred 100 | . . 100 Parts Sabotaged . | . . . Parts Stolen . | . . . Parts Stripped . | . . . Power Chain Reactions . | . . . Alert | -11 -10 -10 ------- Run | Yrd Mat Min Maximum Alert Level . | . . . Low Security (%) 100 | 100 100 100 Level 1 . | . . . Level 2 . | . . . Level 3 . | . . . Level 4 . | . . . Level 5 . | . . . High Security . | . . . Max Security . | . . . Peak Influence 66 | . 66 61 Initial 21 | . . 21 Average 11 | . 25 10 Influence Increases 206 | . 76 130 Destroy 0b10 Robot/C 80 | . . 80 Destroy Leader 20 | . . 20 Successful Hack 16 | . 16 . Disable Machine 15 | . 15 . Destroy Structure 30 | . . 30 Partial Spotted 15 | . 15 . Lose Combat Pursuer 30 | . 30 . Influence Decreases 205 | . 20 185 Entered New Map 35 | . . 35 Time Decay 139 | . 20 119 Lost Part 11 | . . 11 Lost Ally 20 | . . 20 Squads Dispatched 1 | . 1 . Investigation . | . . . Extermination . | . . . Reinforcement 1 | . 1 . Assault . | . . . Garrison . | . . . Intercept . | . . . Searches Triggered . | . . . Construction Impeded . | . . . Haulers Reinforced . | . . . Active Scanning Responses . | . . . Cargo Convoy Interrupts . | . . . Stealth | -11 -10 -10 --------- Run | Yrd Mat Min Distress Signals 1 | . 1 . Communications Jammed . | . . . Distress Signals . | . . . Times Spotted 25 | . 3 22 Peak Tracking Total 11 | . 5 11 Tactical Retreats 1 | . 1 . Traps | -11 -10 -10 ------- Run | Yrd Mat Min Traps Triggered . | . . . Indirectly . | . . . Trap Hack Attempts . | . . . Triggered . | . . . Disarmed . | . . . Reprogrammed . | . . . Reused . | . . . Traps Extracted . | . . . Installed . | . . . Triggered . | . . . Machines | -11 -10 -10 ---------- Run | Yrd Mat Min Machines Disabled 1 | . 1 . Max in Single Turn 1 | . 1 . Machines Repaired . | . . . Machines Dismantled . | . . . Machines Sabotaged . | . . . Overloaded Fab Kills . | . . . Hacking | -11 -10 -10 --------- Run | Yrd Mat Min Machines Accessed 3 | . 2 1 Terminals 2 | . 2 . Fabricators . | . . . Repair Stations . | . . . Recycling Units . | . . . Scanalyzers . | . . . Garrison Access . | . . . Total Hacks 7 | . 6 1 Successful 6 | . 5 1 Failed 1 | . 1 . Catastrophic . | . . . Database Lockouts . | . . . Manual 6 | . 6 . Terminals 6 | . 6 . Fabricators . | . . . Repair Stations . | . . . Recycling Units . | . . . Scanalyzers . | . . . Garrison Access . | . . . Terminal Hacks 3 | . 2 1 Open Door 1 | . . 1 Branch Access Points 1 | . 1 . Terminal Index 1 | . 1 . Fabricator Hacks . | . . . Repair Station Hacks . | . . . Recycling Unit Hacks . | . . . Scanalyzer . | . . . Garrison Access Hacks . | . . . Unauthorized Hacks 3 | . 3 . Terminals 3 | . 3 . Botnet 2 | . 2 . Skim 1 | . 1 . Fabricators . | . . . Repair Stations . | . . . Recycling Units . | . . . Scanalyzers . | . . . Garrison Access . | . . . Data Cores Recovered . | . . . Used . | . . . Hacking Detections 1 | . 1 . Full Trace Events . | . . . Feedback Events . | . . . Feedback Blocked . | . . . Robot Schematics Acquired . | . . . Robots Built . | . . . Authchips . | . . . Time . | . . . Total Robot Build Rating . | . . . Part Schematics Acquired . | . . . Parts Built . | . . . Authchips . | . . . Time . | . . . Total Part Build Rating . | . . . Part Studies Acquired . | . . . Parts Repaired . | . . . Time . | . . . Parts Recycled . | . . . Recycled Matter . | . . . Retrieved Matter . | . . . Retrieved Components . | . . . Parts Scanalyzed . | . . . Part Schematics Acquired . | . . . Parts Damaged . | . . . Bothacking | -11 -10 -10 ------------ Run | Yrd Mat Min Used RIF Installer . | . . . Robots Hacked . | . . . Non-combat . | . . . Combat . | . . . Robot Hacks Applied . | . . . Relay Couplers Released . | . . . Fabnet Peak Effective % . | . . . Robots Rewired . | . . . Allies Hacked . | . . . Hacks Repelled . | . . . Allies | -11 -10 -10 -------- Run | Yrd Mat Min Total Allies 2 | . . 2 Largest Group 2 | . . 2 Highest-Rated Group 68 | . . 68 Highest-Rated Ally 34 | . . 34 Total Orders . | . . . Ally Attacks 7 | . . 7 Total Damage 776 | . . 776 Kills 10 | . . 10 Allies Corrupted . | . . . Allies Melted . | . . . Intel | -11 -10 -10 ------- Run | Yrd Mat Min Active Infowar (turns) . | . . . Robot Analysis Total . | . . . Derelict Logs Recovered 2 | . . 2 Drone Launches 3 | . . 3 Drone Recoveries 3 | . . 3 Exploration | -11 -10 -10 ------------- Run | Yrd Mat Min Turns Passed 618 | 31 41 546 Spaces Moved 598 | 37 67 494 Core 588 | 27 67 494 Treads . | . . . Legs . | . . . Wheels 10 | 10 . . Hover . | . . . Flight . | . . . Fastest Speed 50 | 50 50 50 Average Speed 69 | 60 50 73 Slowest Speed 200 | 90 50 200 Overloaded Moves . | . . . Propulsion Burnouts . | . . . Robots Hopped . | . . . Potential Cave-ins . | . . . Cave-ins Triggered . | . . . Exploration Rate (%) 38 | 4 23 89 Regions Visited 2 Branch Regions 1 Pre-discovered Areas 1 | . . 1 Known Exits Taken 1 | . 1 . Unknown Exits Taken 1 | 1 . . Scrap Searched 2 | . . 2 Spaces Dug . | . . . Terrain Destroyed 1 | . . 1 Melee . | . . . Projectile 1 | . . 1 AOE . | . . . Terrain Rammed . | . . . Walls Destroyed . | . . . Machines Disabled . | . . . Actions | -11 -10 -10 --------- Run | Yrd Mat Min Total 760 | 44 70 646 Wait 121 | . . 121 Move 596 | 36 66 494 Hop . | . . . Pick Up 2 | . 2 . Fast Attach 8 | 5 . 3 Attach 6 | . . 6 Detach 5 | 3 . 2 Swap . | . . . Drop . | . . . Fire 20 | . 2 18 Melee 2 | . . 2 Ram . | . . . Kick . | . . . Crush . | . . . Escape Stasis . | . . . Rewire . | . . . Trap . | . . . Miscellaneous . | . . . Route ------- -11/Scrapyard -10/Materials (discovered 2 exits: *Min x2) -10/Mines (discovered 2 exits: [*Mat] / [*Sub]) History --------- Turn | Location | Event 17 | -11/Scrapyard | Discovered new exit (range 16) 32 | -11/Scrapyard | Entered Materials 48 | -10/Materials | Identified exit to Mines 73 | -10/Materials | Entered Mines 110 | -10/Mines | Met a Derelict bent on vengeance 116 | -10/Mines | Learned location of Storage (-8) 232 | -10/Mines | Discovered new exit (range 3) 317 | -10/Mines | Build established: Mutant 345 | -10/Mines | Discovered new exit (range 13) 413 | -10/Mines | Core integrity fell below 50% 433 | -10/Mines | A weapon hastily lodged in a ceiling crevice suddenly fell to the ground 434 | -10/Mines | Core integrity fell below 20% 454 | -10/Mines | Found the Drone Emporium 458 | -10/Mines | Lost 7 parts (1p2n4w) 465 | -10/Mines | Found Prototype Device 465 | -10/Mines | Identified Splice Drone Bay 510 | -10/Mines | Learned Materials terminal intel 591 | -10/Mines | Assembled infested the area 619 | -10/Mines | Destroyed by as-57633 with Assembled Rifle Last Messages --------------- 00607_ Splice Drone released from Splice Drone Bay. 00607_ Splice Drone injecting D-53 Grenadier... Rewriting IFF filter. 00607_ Splice Drone retrieved by Splice Drone Bay (repair cost: 2). 00608_ The unstable cave ceiling collapses. 00608_ as-09190 destroyed. 00608_ Splice Drone retrieved by Splice Drone Bay (repair cost: 2). 00609_ as-85443 destroyed. 00609_ as-90326 destroyed. 00613_ Splice Drone injecting as-38802... 00615_ as-14957 destroyed. 00615_ as-98375 destroyed. 00615_ Splice Drone retrieved by Splice Drone Bay (repair cost: 8). 00616_ D-53 Grenadier shuts down. 00616_ D-53 Grenadier destroyed. 00616_ as-38802 sneak attacks. Map ----- +----------------------------------------------------+ | | | | | | | | | | | | | | | ?????????????????????????????????????????? | | ?????????????????????????????????????????? | | ?????????????????????????????????????????? | | ?????????????????????????????????????????? | | ?????????????????????????????????????????? | | ####?????????#???????????????????????????? | | # #????????? ?????????????????????# ????? | | # ##??????? ????????????#??????## ????? | | #??????? ?????####???? ????## %%????? | | ##?????? ??? ???? ###?# %%?????? | | # ##????? """" ????? #? ?????? | | ## ##???? """" ???### ## "#??#??? | | ## #???? """" #???## #a ## ##?? | | # #???? ?????# ### #?? | | #??## #??????## ## #?? | | #??# #??????## # #?? | | #### #???????# a #?? | | #????????# d% #?? | | ###### # #?????????#@ = #?? | | ######## ## ##?????????# #?? | | ??# ## ##??????????# ##?? | | ??# #### ## #??????????## # ##??? | | ??# #??# #????????### #???? | | ??# #??# ####??????### #???? | | ??# ##?# ###??????## ##???? | | ??# ### ##????## ## ##????? | | ??# ##??## ## ## ##?????? | | ??# #??# =%!!#####??????? | | #?## #??# ####%#??????????? | | #??#### #??## u##??# #??????????? | | #?????## #???## #???# #??????????? | | #??????### ##???## ##??? ??????????? | | #????????## ##??## ##???? ??????????? | | ###???????# #### ##???? ?????????? | | ##??????# ##??? ?????????? | | #??????## #??? ?????????? | | #???????## ### #?# "????????? | | ##????????######?## ## ?????????? | | ##?????????????????## #? ?????????? | | ##??????############??# #? ??????????? | | #??????# #??? #? ??????????? | | #??????# """ """ #??? #? ??????????? | | #??????# """ """ #??? #??????????????? | +----------------------------------------------------+ Best States ------------- Heat Dissipation 25 Energy Generation 14 Energy Capacity 250 Matter Stores 300 Matter Capacity 300 Sight Range 16 Terrain Scan Density 10 Evasion (%) 50 Item Schematics ----------------- None Robot Schematics ------------------ None Fabricated ------------ Nothing Repaired ---------- Nothing Studied --------- None Alien Tech Used ----------------- None Achievements -------------- None Challenges ------------ None Game ------ Seed SegregatorUtilityArticulator Manual? 0 Play Time 00:09:40 Cumulative 22.1 hours Start 2026.03.28 @ 16:19:22 End 2026.03.28 @ 16:30:53 Sessions 1 Manual Loads 0 Difficulty Rogue Special Mode None Game No. 35 Rogue 35 Adventurer 0 Explorer 0 Win Type - Total 0 Types 0/0/0/0/0/0/0/0/0/0 Lore% 15 Gallery% 20 Achievement% 20 Wizard Run 0 Options --------- Layout 1 ASCII 0 Keyboard 0 Movement Mouse Keybinds 0 Fullscreen 1 Font 48/Smallcaps Map View 50x35 Zoom Use 0% Tactical HUD 1 Map Filters NONE Filters NONE Steam 1 RUN: 85c06b4b-dbb7-4861-b11a-e291c9958635